Workbook

Sheet паспорт
A1: ПАТ "УКРТРАНСГАЗ" | G1: ПАСПОРТ ФІЗИКО-ХІМІЧНИХ ПОКАЗНИКІВ ПРИРОДНОГО ГАЗУ № 23
A2: Філія "УМГ "КИЇВТРАНСГАЗ" | G2: переданого Боярським ЛВУМГ та прийнятого ПАТ "Київоблгаз"
A3: Боярське ЛВУМГ | G3: Маршрут №23
A4: Вимірювальна хіміко-аналітична лабораторія
A5: Свідоцтво № 70А-43-14 чинно до 23.07.2019 р. | K5: по газопроводу "ХОТІВ - БОЯРКА" | V5: за період з | X5: 2017-02-01 | Z5: по | AA5: 2017-02-28
A7: Число місяця | B7: Компонентний склад, % мол. | N7: Фізико-хімічні показники газу обчислені на основі компонентного складу, 101,325 кПа | X7: Температура точки роси за вологою (Р = 3.92 МПа), ºС | Y7: Температура точки роси за вуглеводнями, ºС | Z7: Вміст сірководню, г/м3 | AA7: Вміст меркаптанової сірки, г/м3 | AB7: Вміст механічних домішок, г/м3
N8: Густина абсолютна, кг/м3,при 20 ºС, | O8: Температура вимірювання/згоряння при 20/25°С
B9: метан, С1 | C9: етан, С2 | D9: пропан, С3 | E9: ізо-бутан, і-С4 | F9: н-бутан, н-С4 | G9: нео-пентан, нео-С5 | H9: ізо-пентан, і-С5 | I9: н-пентан, н-С5 | J9: гексани та вищі, С6+ | K9: кисень, О2 | L9: азот, N2 | M9: діоксид вуглецю, CО2 | O9: Теплота згоряння нижча | R9: Теплота згоряння вища | U9: Число Воббе вище
O10: ккал/м3 | P10: МДж/м3 | Q10: кВт⋅год/м3 | R10: ккал/м3 | S10: МДж/м3 | T10: кВт⋅год/м3 | U10: ккал/м3 | V10: МДж/м3 | W10: кВт⋅год/м3
A11: 1 | O11: =P11*238.8459 -> 8209.133583 | P11: 34.37 | Q11: =P11/3.6 -> 9.547222222 | R11: =S11*238.8459 -> 9095.251872 | S11: 38.08 | T11: =S11/3.6 -> 10.57777778 | AC11: =SUM(B11:M11)+$K$39+$N$39 -> 0
A12: 2 | O12: =P12*238.8459 -> 8209.133583 | P12: 34.37 | Q12: =P12/3.6 -> 9.547222222 | R12: =S12*238.8459 -> 9095.251872 | S12: 38.08 | T12: 10.57777778 | AC12: 0
A13: 3 | O13: =P13*238.8459 -> 8209.133583 | P13: 34.37 | Q13: =P13/3.6 -> 9.547222222 | R13: 9095.251872 | S13: 38.08 | T13: 10.57777778 | AC13: 0 | AD13: =IF(AC13=100,"ОК"," ") -> 
A14: 4 | O14: 8209.133583 | P14: 34.37 | Q14: 9.547222222 | R14: 9095.251872 | S14: 38.08 | T14: 10.57777778 | AC14: 0 | AD14: =IF(AC14=100,"ОК"," ") -> 
A15: 5 | O15: 8209.133583 | P15: 34.37 | Q15: 9.547222222 | R15: 9095.251872 | S15: 38.08 | T15: 10.57777778 | AC15: 0
A16: 6 | O16: 8209.133583 | P16: 34.37 | Q16: 9.547222222 | R16: 9095.251872 | S16: 38.08 | T16: 10.57777778 | AC16: 0
A17: 7 | B17: 92.2469 | C17: 3.7943 | D17: 0.8596 | E17: 0.1053 | F17: 0.1408 | G17: 0.003 | H17: 0.0347 | I17: 0.0279 | J17: 0.0489 | K17: 0.0064 | L17: 1.2526 | M17: 1.4796 | N17: 0.7314 | O17: 8187.637452 | P17: 34.28 | Q17: 9.522222222 | R17: 9073.755741 | S17: 37.99 | T17: 10.55277778 | U17: =V17*238.8459 -> 11643.73762 | V17: 48.75 | W17: =V17/3.6 -> 13.54166667 | AC17: 100 | AD17: ОК
A18: 8 | O18: 8187.637452 | P18: 34.28 | Q18: 9.522222222 | R18: 9073.755741 | S18: 37.99 | T18: 10.55277778 | AC18: 0
A19: 9 | O19: 8187.637452 | P19: 34.28 | Q19: 9.522222222 | R19: 9073.755741 | S19: 37.99 | T19: 10.55277778 | AC19: 0
A20: 10 | O20: 8187.637452 | P20: 34.28 | Q20: 9.522222222 | R20: 9073.755741 | S20: 37.99 | T20: 10.55277778 | AC20: 0
A21: 11 | O21: 8187.637452 | P21: 34.28 | Q21: 9.522222222 | R21: 9073.755741 | S21: 37.99 | T21: 10.55277778 | AC21: 0
A22: 12 | O22: 8187.637452 | P22: 34.28 | Q22: 9.522222222 | R22: 9073.755741 | S22: 37.99 | T22: 10.55277778 | AC22: 0
A23: 13 | B23: 91.6553 | C23: 4.0699 | D23: 0.9222 | E23: 0.1117 | F23: 0.1513 | G23: 0.0031 | H23: 0.0376 | I23: 0.0306 | J23: 0.0555 | K23: 0.0113 | L23: 1.4011 | M23: 1.5505 | N23: 0.736 | O23: 8201.968206 | P23: 34.34 | Q23: 9.538888889 | R23: 9085.698036 | S23: 38.04 | T23: 10.56666667 | U23: =V23*238.8459 -> 11624.62995 | V23: 48.67 | W23: =V23/3.6 -> 13.51944444 | X23: -16.9 | Y23: -15.4 | AC23: 100.0001
A24: 14 | O24: 8201.968206 | P24: 34.34 | Q24: 9.538888889 | R24: 9085.698036 | S24: 38.04 | T24: 10.56666667 | AC24: 0
A25: 15 | O25: 8201.968206 | P25: 34.34 | Q25: 9.538888889 | R25: 9085.698036 | S25: 38.04 | T25: 10.56666667 | AC25: 0
A26: 16 | O26: 8201.968206 | P26: 34.34 | Q26: 9.538888889 | R26: 9085.698036 | S26: 38.04 | T26: 10.56666667 | AC26: 0
A27: 17 | O27: 8201.968206 | P27: 34.34 | Q27: 9.538888889 | R27: 9085.698036 | S27: 38.04 | T27: 10.56666667 | AC27: 0
A28: 18 | O28: 8201.968206 | P28: 34.34 | Q28: 9.538888889 | R28: 9085.698036 | S28: 38.04 | T28: 10.56666667 | AC28: 0
A29: 19 | O29: 8201.968206 | P29: 34.34 | Q29: 9.538888889 | R29: 9085.698036 | S29: 38.04 | T29: 10.56666667 | AC29: 0
A30: 20 | B30: 90.1571 | C30: 4.6866 | D30: 0.984 | E30: 0.1073 | F30: 0.1607 | G30: 0.0038 | H30: 0.0434 | I30: 0.0354 | J30: 0.0649 | K30: 0.0169 | L30: 1.6572 | M30: 2.0827 | N30: 0.7485 | O30: 8190.025911 | P30: 34.29 | Q30: 9.525 | R30: 9073.755741 | S30: 37.99 | T30: 10.55277778 | U30: =V30*238.8459 -> 11509.98392 | V30: 48.19 | W30: =V30/3.6 -> 13.38611111 | AC30: 100 | AD30: =IF(AC30=100,"ОК"," ") -> ОК
A31: 21 | O31: =P31*238.8459 -> 8190.025911 | P31: 34.29 | Q31: =P31/3.6 -> 9.525 | R31: =S31*238.8459 -> 9073.755741 | S31: 37.99 | T31: =S31/3.6 -> 10.55277778 | AC31: 0
A32: 22 | O32: 8190.025911 | P32: 34.29 | Q32: 9.525 | R32: 9073.755741 | S32: 37.99 | T32: 10.55277778 | AC32: 0
A33: 23 | O33: 8190.025911 | P33: 34.29 | Q33: =P33/3.6 -> 9.525 | R33: 9073.755741 | S33: 37.99 | T33: =S33/3.6 -> 10.55277778 | AC33: 0 | AD33: =IF(AC33=100,"ОК"," ") -> 
A34: 24 | O34: 8190.025911 | P34: 34.29 | Q34: 9.525 | R34: 9073.755741 | S34: 37.99 | T34: 10.55277778 | AC34: 0
A35: 25 | O35: 8190.025911 | P35: 34.29 | Q35: 9.525 | R35: 9073.755741 | S35: 37.99 | T35: 10.55277778 | AC35: 0
A36: 26 | O36: 8190.025911 | P36: 34.29 | Q36: 9.525 | R36: 9073.755741 | S36: 37.99 | T36: =S36/3.6 -> 10.55277778 | AC36: 0
A37: 27 | B37: 89.8273 | C37: 4.8488 | D37: 0.9998 | E37: 0.1065 | F37: 0.163 | G37: 0.0037 | H37: 0.0438 | I37: 0.0364 | J37: 0.0728 | K37: 0.0072 | L37: 1.6388 | M37: 2.2518 | N37: 0.7517 | O37: 8194.802829 | P37: 34.31 | Q37: 9.530555556 | R37: 9076.1442 | S37: 38 | T37: 10.55555556 | U37: =V37*238.8459 -> 11488.48779 | V37: 48.1 | W37: =V37/3.6 -> 13.36111111 | Z37: 0.006 | AA37: 0.02 | AB37: відсут | AC37: 99.9999
A38: 28 | O38: 8194.802829 | P38: 34.31 | Q38: 9.530555556 | R38: 9076.1442 | S38: 38 | T38: 10.55555556 | AC38: 0
A39: Рівень одоризації відповідає чинним нормативним документам | O39: 8197 | P39: 34.32 | Q39: 9.53 | R39: 9082 | S39: 38.02 | T39: 10.56
H40: Середньозважене значення теплоти згоряння:
B43: Головний інженер Боярського ЛВУМГ Табак С.М. 01.03.2017 р.
C44: Підрозділу підприємства, якому підпорядкована лабораторія | O44: прізвище | R44: підпис | V44: дата
B45: Завідувач вимірювальної хіміко-аналітичної лабораторії Клименко І.А. 01.03.2017 р.
C46: Лабораторія, де здійснювалось вимірювання газу | O46: прізвище | R46: підпис | V46: дата
B47: Начальник служби газовимірювань та метрології Прима Ю.І. 01.03.2017 р.
C48: Підрозділу, відповідального за облік газу за маршрутом | O48: прізвище | R48: підпис | V48: дата

Sheet додаток
A2: Додаток до Паспорту фізико-хімічних показників природного газу №23
A4: Область | B4: ГРС, прямий споживач | C4: Cередньозважене значення вищої теплоти згоряння
C5: МДж/м³ | D5: ккал/м³ | E5: кВт*год./м³
A6: Київська область | B6: ГРС - 1А | C6: 38.02 | D6: 9082 | E6: 10.56
A7: Середньозважене значення вищої теплоти згоряння по маршруту № 23 | C7: =AVERAGE(C6) -> 38.02 | D7: =AVERAGE(D6) -> 9082 | E7: 10.56
A11: Головний інженер Боярського ЛВУМГ Табак С.М. 01.03.2017 р.
A12: Підрозділу підприємства, якому підпорядкована лабораторія | D12: прізвище | E12: підпис | F12: дата
A13: Завідувач вимірювальної хіміко-аналітичної лабораторії Клименко І.А. 01.03.2017 р.
A14: Лабораторія, де здійснювалось вимірювання газу | D14: прізвище | E14: підпис | F14: дата
A15: Начальник служби газовимірювань та метрології Прима Ю.І. 01.03.2017 р.
A16: Підрозділу, відповідального за облік газу за маршрутом | D16: прізвище | E16: підпис | F16: дата

Sheet variablesList (hidden)
A1: 3 | B1: x:\gaysin | C1: 10, 11, 24, 25, 127, 128, 132, 180, 207, 215 | D1: x:\
B2: x:\Illinci
B3: x:\Talne
